Cogmind - Beta 16.1 @@@ ROGUE MODE // 2026.02.22 @ 13:44:54 Player: TheSkyeDoctor Result: Destroyed by G-34 Mercenary with Small Laser Performance ------------- Evolutions (1) 500 Regions Visited (2) 400 Robots Destroyed (42) 210 Value Destroyed (841) 841 Prototype IDs (0) 0 Alien Tech Used (0) 0 Bonus (0) 0 TOTAL SCORE: 1951 Bonus ------- None Cogmind --------- Core Integrity 0/400 Matter 288/300 Energy 250/250 System Corruption 2% Temperature Cool (6) Movement Core (1500) Ox29 Location -9/Materials Parts ------- > --- POWER (1) -------- Ion Engine > --- PROPULSION (3) --- (None) > --- UTILITY (3) ------ Huge Storage Unit Targeting Computer > --- WEAPON (2) ------- Light Assault Rifle Flail > --- INVENTORY (25) --- Ion Engine Ion Engine Sensor Array Signal Interpreter Improved Terrain Scanner Propulsion Shielding Rocket Launcher Peak State ------------ > --- POWER ------------ Ion Engine > --- PROPULSION ------- Light Treads Light Treads > --- UTILITY ---------- Huge Storage Unit Seismic Detector > --- WEAPON ----------- Beam Rifle Autogun > --- INVENTORY -------- Ion Engine Wheel Sensor Array Signal Interpreter Improved Terrain Scanner Targeting Computer Targeting Computer Propulsion Shielding Assault Rifle Grenade Launcher Rocket Launcher Flail [Rating: 10] Favorites ----------- Power Ion Engine Engine Ion Engine Propulsion Light Treads Treads Light Treads Wheel Wheel Utility Huge Storage Unit Device Seismic Detector Storage Huge Storage Unit Processor Targeting Computer Weapon Assault Rifle Energy Gun Beam Rifle Ballistic Gun Assault Rifle Launcher Grenade Launcher Impact Weapon Flail Build | -11 -10 -9 ------- Run | Yrd Mat Mat Slots Evolved 2 | . . 2 Power . | . . . Propulsion 1 | . . 1 Utility 1 | . . 1 Weapon . | . . . Parts Attached 20 | 7 2 11 Power 3 | 1 . 2 Engine 3 | 1 . 2 Core . | . . . Reactor . | . . . Propulsion 4 | 2 . 2 Treads 2 | 2 . . Leg . | . . . Wheel 2 | . . 2 Hover . | . . . Flight . | . . . Utility 5 | 2 1 2 Device 1 | 1 . . Storage 2 | 1 1 . Processor 2 | . . 2 Hackware . | . . . Protection . | . . . Artifact . | . . . Weapon 8 | 2 1 5 Energy Gun 2 | 1 1 . Energy Cannon . | . . . Ballistic Gun 3 | 1 . 2 Ballistic Cannon . | . . . Launcher 2 | . . 2 Special Weapon . | . . . Impact Weapon 1 | . . 1 Slashing Weapon . | . . . Piercing Weapon . | . . . Special Melee Weapon . | . . . Unidentified Prototypes . | . . . Parts Lost 12 | . . 12 Power 2 | . . 2 Propulsion 4 | . . 4 Utility 2 | . . 2 Weapon 4 | . . 4 Highest Loss Streak 7 | . . 7 To Critical Strikes . | . . . Average Backups 9 | 2 9 9 Power 1 | . 1 1 Propulsion . | 1 1 . Utility 5 | . 5 4 Weapon 2 | . 2 2 Tool/Special . | . . . Unused Backups 5 | . . 5 Power 1 | . . 1 Propulsion . | . . . Utility 4 | . . 4 Weapon . | . . . Tool/Special . | . . . Average Slot Usage (%) 87 | . 100 70 Engine 12 | . 14 10 Treads 19 | . 28 8 Wheel 2 | . . 5 Device 10 | . 14 6 Storage 12 | . 14 11 Processor 3 | . . 6 Energy Gun 8 | . 14 . Ballistic Gun 14 | . 14 14 Launcher 1 | . . 2 Impact Weapon 1 | . . 4 Peak Build Rating 10 | 7 9 10 Average Rating 8 | 4 8 8 On Entrance 5 | . 7 9 Avg Prop Armor Cover (%) . | . . . Naked Turns . | . . . Heaviest Build 93 | 14 91 93 Greatest Support 40 | 40 40 40 Greatest Overweight (x) 29 | . 2 29 Average Overweight (x) 3 | . 1 7 Largest Inventory Capacity 25 | 8 25 25 Average Capacity 23 | 7 23 25 Most Carried 13 | 5 12 13 Average Carried 9 | 2 10 9 Final Capacity 25 | 8 25 25 Final Carried 12 | 3 12 7 Class Distribution -------------------- 100% | Mutant Dominant Class ---------------- Mutant | -10/Materials Mutant | -9/Materials Resources | -11 -10 -9 ----------- Run | Yrd Mat Mat Matter Collected 770 | 276 92 402 Remotely . | . . . Salvage Created 1119 | 116 318 685 Parts 66 | 6 26 34 Haulers Intercepted . | . . . Recyclers Shooed . | . . . Parts Field Recycled . | . . . Retrieved Matter . | . . . Parts Self-Destructed . | . . . Prevented . | . . . Parts Restored . | . . . Kills | -11 -10 -9 ------- Run | Yrd Mat Mat Combat Hostiles Destroyed 34 | . 12 22 Melee 2 | . . 2 Guns 26 | . 12 14 AOE 4 | . . 4 Classes Destroyed 8 | 2 3 3 Worker 2 | . . 2 Tunneler 2 | 1 . 1 Recycler 1 | 1 . . Watcher 3 | . 3 . Swarmer 19 | . 9 10 Grunt 12 | . 3 9 Duelist 1 | . . 1 Sentry 2 | . . 2 Best Kill Streak 5 | 1 3 5 Combat Bots Only 5 | . 3 5 Max Kills in Single Turn 2 | 1 2 2 Gunslinging . | . . . Exploded 2 | . . 2 Melee 1 | . . 1 Uniques/NPCs Destroyed . | . . . Combat | -11 -10 -9 -------- Run | Yrd Mat Mat Hostile Shots Fired 214 | . 43 171 Missed 54 | . 12 42 Hits 160 | . 31 129 Melee 1 | . . 1 Projectile 159 | . 31 128 Critical Strikes 3 | . . 3 Damage Taken 1743 | . 274 1469 Core 448 | . 38 410 Absorbed by Shields . | . . . Core Remaining (%) 92 | 100 84 . Volleys Fired 97 | 2 31 64 Largest 2 | 2 2 2 Hottest 79 | 60 76 79 Shots Fired 158 | 4 62 92 Gun 152 | 4 62 86 Cannon . | . . . Launcher 6 | . . 6 Special . | . . . Kinetic 113 | 2 31 80 Thermal 39 | 2 31 6 Explosive 6 | . . 6 Electromagnetic . | . . . Robot Hit Streak 14 | 3 5 14 Robot Miss Streak 4 | . 4 4 Penetration Max . | . . . Secondary Targets 6 | . 3 3 Max Gunslinging Chain 1 | . 1 1 Shots Hit Robots 116 | 3 32 81 Core Hits 54 | 3 20 31 Critical Kills 2 | . . 2 Critical Parts Destroyed 2 | . . 2 Critical Strikes 4 | . . 4 Destroy 1 | . . 1 Smash 3 | . . 3 Melee Attacks 15 | . . 15 Impact 15 | . . 15 Slashing . | . . . Piercing . | . . . Sneak Attacks 3 | . . 3 Combat Hostiles . | . . . Follow-up Attacks . | . . . Damage Inflicted 2119 | 35 455 1629 Guns 1269 | 35 455 779 Cannons . | . . . Explosions 264 | . . 264 Melee 586 | . . 586 Ramming . | . . . Kinetic 950 | 13 216 721 Thermal 319 | 22 239 58 Explosive 264 | . . 264 Electromagnetic . | . . . Impact 586 | . . 586 Slashing . | . . . Piercing . | . . . Highest Corruption 2 | . . 2 Average Corruption 2 | . . 2 Corruption Purged . | . . . Corruption Blocked . | . . . Effects 17 | . . 17 Message Errors 7 | . . 7 Matter Fused 3 | . . 3 Heat Flow Errors 2 | . . 2 Energy Discharges 2 | . . 2 Parts Fused 1 | . . 1 Data Loss (minor) 1 | . . 1 Misfires 1 | . . 1 Overload Shots . | . . . Overflow Damage 198 | . . 198 Projectiles . | . . . Explosions . | . . . Melee 198 | . . 198 Knockbacks 3 | . . 3 Impact 3 | . . 3 Kinetic . | . . . Secondary . | . . . Self-Inflicted Damage 97 | . . 97 Shots 4 | . . 4 Rammed . | . . . Targets Rammed . | . . . Kicked . | . . . Crushed . | . . . Highest Temperature 150 | . 75 150 Average Temperature 31 | . 29 33 Received Heat Transfer 579 | . 33 546 Siege Activations . | . . . Martial Activations . | . . . Shielding Activations . | . . . Robots Disrupted . | . . . Combat Hostiles . | . . . Robots Corrupted 5 | . . 5 Combat Hostiles 2 | . . 2 Parts Fried 6 | . . 6 Impact Corruptions 10 | . . 10 Robots Melted . | . . . Combat Hostiles . | . . . Parts Melted 1 | . 1 . Heat Transferred 780 | 50 582 148 Parts Sabotaged . | . . . Parts Stolen . | . . . Parts Stripped . | . . . Power Chain Reactions . | . . . Alert | -11 -10 -9 ------- Run | Yrd Mat Mat Maximum Alert Level . | . . . Low Security (%) 100 | 100 100 100 Level 1 . | . . . Level 2 . | . . . Level 3 . | . . . Level 4 . | . . . Level 5 . | . . . High Security . | . . . Max Security . | . . . Peak Influence 149 | 5 82 149 Initial 31 | . . 31 Average 35 | 1 11 68 Influence Increases 1009 | 10 349 650 Destroy 0b10 Robot/C 680 | . 240 440 Destroy 0b10 Robot/NC 40 | 10 15 15 Destroy Leader 166 | . 56 110 Successful Hack 28 | . 23 5 Disable Machine 15 | . . 15 Destroy Structure 50 | . . 50 Lose Combat Pursuer 30 | . 15 15 Influence Decreases 905 | 10 273 622 Entered New Map 45 | . . 45 Time Decay 750 | 10 273 467 Lost Part 110 | . . 110 Squads Dispatched 5 | . 1 4 Investigation 1 | . . 1 Extermination . | . . . Reinforcement 4 | . 1 3 Assault . | . . . Garrison . | . . . Intercept . | . . . Searches Triggered . | . . . Construction Impeded 1 | . . 1 Haulers Reinforced . | . . . Active Scanning Responses . | . . . Cargo Convoy Interrupts . | . . . Stealth | -11 -10 -9 --------- Run | Yrd Mat Mat Distress Signals 2 | . 1 1 Communications Jammed . | . . . Distress Signals . | . . . Times Spotted 47 | . 15 32 Peak Tracking Total 6 | . 3 6 Tactical Retreats 2 | . 1 1 Traps | -11 -10 -9 ------- Run | Yrd Mat Mat Traps Triggered 2 | . . 2 Indirectly . | . . . Trap Hack Attempts . | . . . Triggered . | . . . Disarmed . | . . . Reprogrammed . | . . . Reused . | . . . Traps Extracted . | . . . Installed . | . . . Triggered . | . . . Machines | -11 -10 -9 ---------- Run | Yrd Mat Mat Machines Disabled 1 | . . 1 Max in Single Turn 1 | . . 1 Machines Repaired . | . . . Machines Dismantled . | . . . Machines Sabotaged . | . . . Overloaded Fab Kills . | . . . Hacking | -11 -10 -9 --------- Run | Yrd Mat Mat Machines Accessed 8 | . 7 1 Terminals 7 | . 6 1 Fabricators . | . . . Repair Stations . | . . . Recycling Units 1 | . 1 . Scanalyzers . | . . . Garrison Access . | . . . Total Hacks 18 | . 16 2 Successful 7 | . 6 1 Failed 11 | . 10 1 Catastrophic 1 | . 1 . Database Lockouts . | . . . Manual 15 | . 13 2 Terminals 16 | . 14 2 Fabricators . | . . . Repair Stations . | . . . Recycling Units 2 | . 2 . Scanalyzers . | . . . Garrison Access . | . . . Terminal Hacks 2 | . 2 . Robot Analysis 1 | . 1 . Terminal Index 1 | . 1 . Fabricator Hacks . | . . . Repair Station Hacks . | . . . Recycling Unit Hacks . | . . . Scanalyzer . | . . . Garrison Access Hacks . | . . . Unauthorized Hacks 5 | . 4 1 Terminals 5 | . 4 1 Botnet 5 | . 4 1 Fabricators . | . . . Repair Stations . | . . . Recycling Units . | . . . Scanalyzers . | . . . Garrison Access . | . . . Data Cores Recovered . | . . . Used . | . . . Hacking Detections 6 | . 5 1 Full Trace Events . | . . . Feedback Events . | . . . Feedback Blocked . | . . . Robot Schematics Acquired . | . . . Robots Built . | . . . Authchips . | . . . Time . | . . . Total Robot Build Rating . | . . . Part Schematics Acquired . | . . . Parts Built . | . . . Authchips . | . . . Time . | . . . Total Part Build Rating . | . . . Part Studies Acquired . | . . . Parts Repaired . | . . . Time . | . . . Parts Recycled . | . . . Recycled Matter . | . . . Retrieved Matter . | . . . Retrieved Components . | . . . Parts Scanalyzed . | . . . Part Schematics Acquired . | . . . Parts Damaged . | . . . Bothacking | -11 -10 -9 ------------ Run | Yrd Mat Mat Used RIF Installer . | . . . Robots Hacked . | . . . Non-combat . | . . . Combat . | . . . Robot Hacks Applied . | . . . Relay Couplers Released . | . . . Fabnet Peak Effective % . | . . . Robots Rewired . | . . . Allies Hacked . | . . . Hacks Repelled . | . . . Allies | -11 -10 -9 -------- Run | Yrd Mat Mat Total Allies . | . . . Largest Group . | . . . Highest-Rated Group . | . . . Highest-Rated Ally . | . . . Total Orders . | . . . Ally Attacks . | . . . Total Damage . | . . . Kills . | . . . Allies Corrupted . | . . . Allies Melted . | . . . Intel | -11 -10 -9 ------- Run | Yrd Mat Mat Active Infowar (turns) 2647 | 4 1825 818 Seismic 2647 | 4 1825 818 Robot Analysis Total 1 | . 1 . Derelict Logs Recovered . | . . . Drone Launches . | . . . Drone Recoveries . | . . . Exploration | -11 -10 -9 ------------- Run | Yrd Mat Mat Turns Passed 3271 | 69 1825 1377 Spaces Moved 926 | 43 556 327 Core 25 | 18 . 7 Treads 657 | 25 556 76 Legs . | . . . Wheels 244 | . . 244 Hover . | . . . Flight . | . . . Fastest Speed 50 | 50 160 200 Average Speed 281 | 113 299 271 Slowest Speed 1500 | 160 320 1500 Overloaded Moves . | . . . Propulsion Burnouts . | . . . Robots Hopped . | . . . Potential Cave-ins . | . . . Cave-ins Triggered . | . . . Exploration Rate (%) 38 | 3 79 34 Regions Visited 2 Branch Regions . Pre-discovered Areas . | . . . Known Exits Taken . | . . . Unknown Exits Taken 2 | 1 1 . Scrap Searched . | . . . Spaces Dug . | . . . Terrain Destroyed 50 | . . 50 Melee . | . . . Projectile . | . . . AOE 50 | . . 50 Terrain Rammed . | . . . Walls Destroyed . | . . . Machines Disabled . | . . . Actions | -11 -10 -9 --------- Run | Yrd Mat Mat Total 1427 | 58 656 713 Wait 338 | . 55 283 Move 924 | 42 555 327 Hop . | . . . Pick Up 24 | 7 11 6 Fast Attach 3 | 3 . . Attach 18 | 4 1 13 Detach 2 | . . 2 Swap 4 | . 1 3 Drop 2 | . 2 . Fire 97 | 2 31 64 Melee 15 | . . 15 Ram . | . . . Kick . | . . . Crush . | . . . Escape Stasis . | . . . Rewire . | . . . Trap . | . . . Miscellaneous . | . . . Route ------- -11/Scrapyard -10/Materials (discovered 4 exits: *Mat x2 / [*Min x2]) -9/Materials (discovered 1 exit: [*Min]) History --------- Turn | Location | Event 17 | -11/Scrapyard | Discovered new exit (range 16) 70 | -11/Scrapyard | Entered Materials 308 | -10/Materials | Build established: Mutant 995 | -10/Materials | Discovered new exit (range 9) 1285 | -10/Materials | Discovered new exit (range 6) 1550 | -10/Materials | Discovered new exit (range 6) 1784 | -10/Materials | Discovered new exit (range 16) 1895 | -10/Materials | Entered another Materials area 1895 | -9/Materials | Evolved 2 slots: Propulsion x1, Utility x1 2635 | -9/Materials | Discovered new exit (range 7) 2748 | -9/Materials | Core integrity fell below 50% 2775 | -9/Materials | Lost 7 parts (1p1n2u3w) 3215 | -9/Materials | Core integrity fell below 20% 3272 | -9/Materials | Destroyed by G-34 Mercenary with Small Laser Last Messages --------------- effect. Y-45 Defender system terminally corrupted. Lgt. Armor Plating fried. Heat Sink fried. ALERT: Hostiles spotted, dispatching reinforcements to Terminal M004. K-01 Serf collects debris. U-05 Engineer builds a Door. MW6U=MNR IUJ9L6CXJE#ZC29 V Lgt. Treads destroyed. Acquired 32 matter. M-13 Machinist repairs G-34 Mercenary. Map ----- +----------------------------------------------------+ | # # # #??????# #????### # | | # # # #??????# #?#### | | #######+### ###+###############+####### [ = | | % % ! * | | % % ###### * * | | #???#### ## ## | | +######+############# ###################% # | | #??? ??### ???# #????# # ### | | #??? ""????# ?# #????# """ # | | #?? """???# ! # #????# """ " " + | | #?? """???# + #????# """ "R" # | | " #? ??# # ######????# """ # | | " #? """ ??# # #?????????############## | | " # ""?????####### #????????#########?????# | | # ?????????????# ????????? #?????# | | ### ?????????????# ????????# ####### | | ??#####?????????????# ????????# # | | | ????????????????????# ????????# # " | | ????????????????????# #???????# + " | | ????????????????????# #???????# # " | | ????????????????###?# /???????# ?# " | | ????????????????? # #???????# ???###### " | | ?????????????????? # #???????# ??????????# | | ??????????????????? #?#######+###?#+#?????# " | | ????????????????????# ###[ #?# #?????# | | ????????????????????# %mg@ ### ###???# | | ????????????????????# ###= %# ##### | | ?????????????######## #?# * # | | ?????????????# # #?#"S ""u=+ T | | ?????????????# # #?#""" """%# | | ?????????????# # #?# "" """[# ##### | | ?????????????# # #?# ## ##???# | | ?????????????# # #?############ #????# | | ?????????????? ?# #????????????# #????# ]] | | ????????########+#### #????????????# #????# ]] | | ? #????????????# #????# ]] | | ????????######## ######????????????##+##????# | | ???????????????# #??????????????????????????# | | ???????????????# #?????????????????????????? | | ???????????????# #?????????????????????????? | | ???????????????# #??????????????????????????? | | ???????????????# #???????????????????????????##+#? | | ???????????????# #???????????????????????????????? | | ???????????????# #???????????????????????????????? | | ???????????????# #???????????????????????????????? | | ???????????????#+#???????????????????????????????? | | ?????????????????????????????????????????????????? | | ?????????????????????????????????????????????????? | | ?????????????????????????????????????????????????? | | ?????????????????????????????????????????????????? | +----------------------------------------------------+ Best States ------------- Heat Dissipation 28 Energy Generation 10 Energy Capacity 250 Matter Stores 300 Matter Capacity 300 Sight Range 16 Terrain Scan Density 10 Evasion (%) 50 Targeting Accuracy 10 Recoil Reduction 2 Item Schematics ----------------- None Robot Schematics ------------------ None Fabricated ------------ Nothing Repaired ---------- Nothing Studied --------- None Alien Tech Used ----------------- None Achievements -------------- None Challenges ------------ None Game ------ Seed ScatterCloakingKatana Manual? 0 Play Time 00:17:04 Cumulative 36.4 hours Start 2026.02.22 @ 13:30:49 End 2026.02.22 @ 13:44:54 Sessions 1 Manual Loads 0 Difficulty Rogue Special Mode None Game No. 87 Rogue 87 Adventurer 0 Explorer 0 Win Type - Total 0 Types 0/0/0/0/0/0/0/0/0/0 Lore% 27 Gallery% 34 Achievement% 24 Wizard Run 0 Options --------- Layout 1 ASCII 0 Keyboard 0 Movement Mouse Keybinds 0 Fullscreen 1 Font 24/Smallcaps Map View 50x35 Zoom Use 0% Tactical HUD 0 Map Filters NONE Filters NONE Steam 1 RUN: a1c3db9a-dc0c-48b6-9435-97dcd212c0c5